[Event "Titled Tuesday Blitz August 3 2021"]
[White "Praggnanandhaa R"]
[Black "Martinez Alcantara, Jose Eduardo"]
[WhiteFideId "25059530"]
[BlackFideId "3805662"]
[WhiteElo "2555"]
[BlackElo "2690"]
[Result "0-1"]
[Round "06"]
[TimeControl "180+1"]
[Date "2021.08.03"]
[WhiteClock "0:00:05"]
[BlackClock "0:00:14"]

1. Nf3 {[%clk 0:03:00]}  c5 {[%clk 0:02:59]} 2. g3 {[%clk 0:02:59]}  Nc6 {[%clk 0:02:59]} 3. Bg2 {[%clk 0:03:00]}  g6 {[%clk 0:02:59]} 4. O-O {[%clk 0:03:00]}  Bg7 {[%clk 0:03:00]} 5. c4 {[%clk 0:02:58]}  d6 {[%clk 0:02:59]} 6. Nc3 {[%clk 0:02:57]}  e6 {[%clk 0:02:59]} 7. e3 {[%clk 0:02:55]}  Nge7 {[%clk 0:02:59]} 8. d4 {[%clk 0:02:56]}  O-O {[%clk 0:03:00]} 9. d5 {[%clk 0:02:54]}  exd5 {[%clk 0:02:52]} 10. cxd5 {[%clk 0:02:55]}  Na5 {[%clk 0:02:51]} 11. e4 {[%clk 0:02:54]}  Bg4 {[%clk 0:02:50]} 12. h3 {[%clk 0:02:49]}  Bxf3 {[%clk 0:02:50]} 13. Bxf3 {[%clk 0:02:50]}  a6 {[%clk 0:02:48]} 14. Bf4 {[%clk 0:02:49]}  b5 {[%clk 0:02:42]} 15. Qc2 {[%clk 0:02:49]}  Nc8 {[%clk 0:02:20]} 16. Rad1 {[%clk 0:02:47]}  Nb6 {[%clk 0:02:19]} 17. Bc1 {[%clk 0:02:20]}  c4 {[%clk 0:02:07]} 18. Ne2 {[%clk 0:02:15]}  Nd7 {[%clk 0:02:05]} 19. Nd4 {[%clk 0:02:13]}  Ne5 {[%clk 0:01:50]} 20. Be2 {[%clk 0:02:12]}  Rc8 {[%clk 0:01:49]} 21. Be3 {[%clk 0:02:10]}  Re8 {[%clk 0:01:44]} 22. Rfe1 {[%clk 0:02:04]}  Qd7 {[%clk 0:01:30]} 23. Kg2 {[%clk 0:02:00]}  Nb7 {[%clk 0:01:30]} 24. b4 {[%clk 0:01:26]}  cxb3 {[%clk 0:01:24]} 25. Qxb3 {[%clk 0:01:26]}  Nc5 {[%clk 0:01:24]} 26. Qb1 {[%clk 0:01:24]}  Na4 {[%clk 0:01:15]} 27. Bd2 {[%clk 0:00:59]}  h5 {[%clk 0:00:56]} 28. Bb4 {[%clk 0:00:34]}  Nc4 {[%clk 0:00:36]} 29. Bxc4 {[%clk 0:00:33]}  Rxc4 {[%clk 0:00:35]} 30. Nc6 {[%clk 0:00:33]}  Bc3 {[%clk 0:00:32]} 31. Rc1 {[%clk 0:00:12]}  Bxe1 {[%clk 0:00:27]} 32. Rxc4 {[%clk 0:00:12]}  bxc4 {[%clk 0:00:24]} 33. Bxe1 {[%clk 0:00:12]}  Nc5 {[%clk 0:00:23]} 34. Bc3 {[%clk 0:00:11]}  Nxe4 {[%clk 0:00:21]} 35. Bd4 {[%clk 0:00:11]}  Kh7 {[%clk 0:00:15]} 36. Qc2 {[%clk 0:00:07]}  Qf5 {[%clk 0:00:15]} 37. Qxc4 {[%clk 0:00:08]}  Ng5 {[%clk 0:00:14]} 38. Be3 {[%clk 0:00:05]}  Qxh3+ {[%clk 0:00:14]} 0-1


[Site "https://www.chess.com"]

[Event "Titled Tuesday Blitz August 3 2021"]
[White "Savchenko, Boris"]
[Black "Andreikin, Dmitry"]
[WhiteFideId "4147332"]
[BlackFideId "4158814"]
[WhiteElo "2542"]
[BlackElo "2782"]
[Result "0-1"]
[Round "06"]
[TimeControl "180+1"]
[Date "2021.08.03"]
[WhiteClock "0:00:03"]
[BlackClock "0:00:05"]

1. e4 {[%clk 0:03:00]}  c5 {[%clk 0:03:00]} 2. Nf3 {[%clk 0:03:00]}  e6 {[%clk 0:03:00]} 3. d4 {[%clk 0:03:01]}  cxd4 {[%clk 0:03:01]} 4. Nxd4 {[%clk 0:03:02]}  Nc6 {[%clk 0:03:01]} 5. Nc3 {[%clk 0:03:02]}  a6 {[%clk 0:03:00]} 6. Nxc6 {[%clk 0:03:02]}  bxc6 {[%clk 0:03:01]} 7. Bd3 {[%clk 0:03:03]}  d5 {[%clk 0:03:01]} 8. O-O {[%clk 0:03:03]}  Nf6 {[%clk 0:03:01]} 9. Qe2 {[%clk 0:03:02]}  Be7 {[%clk 0:03:01]} 10. b3 {[%clk 0:03:02]}  O-O {[%clk 0:02:59]} 11. Bb2 {[%clk 0:03:02]}  Bb7 {[%clk 0:02:58]} 12. Rad1 {[%clk 0:02:59]}  h6 {[%clk 0:02:40]} 13. Na4 {[%clk 0:02:50]}  Qc7 {[%clk 0:02:29]} 14. e5 {[%clk 0:02:51]}  Nd7 {[%clk 0:02:27]} 15. c4 {[%clk 0:02:50]}  dxc4 {[%clk 0:02:17]} 16. Bxc4 {[%clk 0:02:24]}  Rfd8 {[%clk 0:02:17]} 17. Qe3 {[%clk 0:02:11]}  c5 {[%clk 0:02:11]} 18. Qg3 {[%clk 0:02:05]}  Nf8 {[%clk 0:02:08]} 19. Bd3 {[%clk 0:01:57]}  Qc6 {[%clk 0:01:47]} 20. Nc3 {[%clk 0:01:43]}  Rd4 {[%clk 0:01:31]} 21. Ne2 {[%clk 0:01:42]}  Rh4 {[%clk 0:01:26]} 22. f3 {[%clk 0:01:29]}  Rd8 {[%clk 0:01:24]} 23. Be4 {[%clk 0:01:17]}  Rxe4 {[%clk 0:01:23]} 24. fxe4 {[%clk 0:01:17]}  Rxd1 {[%clk 0:01:18]} 25. Rxd1 {[%clk 0:01:17]}  Qxe4 {[%clk 0:01:19]} 26. Nc3 {[%clk 0:01:13]}  Qc2 {[%clk 0:01:10]} 27. Qf2 {[%clk 0:01:12]}  Qg6 {[%clk 0:01:10]} 28. Bc1 {[%clk 0:01:06]}  c4 {[%clk 0:01:07]} 29. Be3 {[%clk 0:01:01]}  cxb3 {[%clk 0:01:06]} 30. axb3 {[%clk 0:01:02]}  Bb4 {[%clk 0:01:03]} 31. Ne2 {[%clk 0:00:56]}  Kh7 {[%clk 0:00:53]} 32. h3 {[%clk 0:00:27]}  Be7 {[%clk 0:00:41]} 33. Nf4 {[%clk 0:00:18]}  Qe4 {[%clk 0:00:37]} 34. Bd4 {[%clk 0:00:16]}  Ng6 {[%clk 0:00:27]} 35. Nxg6 {[%clk 0:00:15]}  fxg6 {[%clk 0:00:21]} 36. Re1 {[%clk 0:00:15]}  Qd5 {[%clk 0:00:18]} 37. Qb2 {[%clk 0:00:10]}  Bg5 {[%clk 0:00:15]} 38. Rf1 {[%clk 0:00:09]}  Qe4 {[%clk 0:00:15]} 39. Kh2 {[%clk 0:00:09]}  Bf4+ {[%clk 0:00:15]} 40. Kh1 {[%clk 0:00:09]}  Bd5 {[%clk 0:00:14]} 41. Qf2 {[%clk 0:00:09]}  g5 {[%clk 0:00:12]} 42. b4 {[%clk 0:00:08]}  Qd3 {[%clk 0:00:12]} 43. Kg1 {[%clk 0:00:05]}  Qe4 {[%clk 0:00:12]} 44. Re1 {[%clk 0:00:05]}  Qd3 {[%clk 0:00:11]} 45. Be3 {[%clk 0:00:05]}  Bxe5 {[%clk 0:00:12]} 46. Bxg5 {[%clk 0:00:05]}  Bc3 {[%clk 0:00:12]} 47. Re3 {[%clk 0:00:02]}  Qd1+ {[%clk 0:00:10]} 48. Kh2 {[%clk 0:00:02]}  Bd4 {[%clk 0:00:10]} 49. Bf4 {[%clk 0:00:03]}  Qb1 {[%clk 0:00:07]} 50. Qe2 {[%clk 0:00:02]}  Bxe3 {[%clk 0:00:06]} 51. Bxe3 {[%clk 0:00:03]}  Qxb4 {[%clk 0:00:06]} 52. Qxa6 {[%clk 0:00:03]}  Qb2 {[%clk 0:00:06]} 53. Qf1 {[%clk 0:00:03]}  Qe5+ {[%clk 0:00:07]} 54. Qf4 {[%clk 0:00:03]}  Qb2 {[%clk 0:00:07]} 55. Qf2 {[%clk 0:00:03]}  Qb8+ {[%clk 0:00:06]} 56. Bf4 {[%clk 0:00:03]}  Qf8 {[%clk 0:00:05]} 57. Qd4 {[%clk 0:00:03]}  Qf5 {[%clk 0:00:05]} 58. Qe5 {[%clk 0:00:03]}  Qg6 {[%clk 0:00:05]} 59. g4 {[%clk 0:00:02]}  Qc2+ {[%clk 0:00:05]} 60. Kg3 {[%clk 0:00:02]}  Qg2+ {[%clk 0:00:05]} 61. Kh4 {[%clk 0:00:03]}  Qf2+ {[%clk 0:00:05]} 62. Bg3 {[%clk 0:00:03]}  g5+ {[%clk 0:00:05]} 0-1


[Site "https://www.chess.com"]

[Event "Titled Tuesday Blitz August 3 2021"]
[White "Shkapenko, Pavel"]
[Black "Aldokhin, Ivan"]
[WhiteFideId "4151933"]
[BlackFideId "24115720"]
[WhiteElo "2386"]
[BlackElo "2306"]
[Result "1-0"]
[Round "06"]
[TimeControl "180+1"]
[Date "2021.08.03"]
[WhiteClock "0:00:08"]
[BlackClock "0:00:03"]

1. e4 {[%clk 0:03:00]}  c5 {[%clk 0:02:59]} 2. c3 {[%clk 0:03:00]}  d5 {[%clk 0:02:58]} 3. exd5 {[%clk 0:02:59]}  Qxd5 {[%clk 0:02:59]} 4. Nf3 {[%clk 0:02:51]}  Nf6 {[%clk 0:02:56]} 5. d4 {[%clk 0:02:51]}  cxd4 {[%clk 0:02:56]} 6. cxd4 {[%clk 0:02:51]}  e6 {[%clk 0:02:56]} 7. Be2 {[%clk 0:02:51]}  Be7 {[%clk 0:02:56]} 8. O-O {[%clk 0:02:51]}  Nc6 {[%clk 0:02:56]} 9. Nc3 {[%clk 0:02:51]}  Qd6 {[%clk 0:02:55]} 10. Be3 {[%clk 0:02:51]}  O-O {[%clk 0:02:55]} 11. a3 {[%clk 0:02:52]}  Rd8 {[%clk 0:02:55]} 12. b4 {[%clk 0:02:50]}  a6 {[%clk 0:02:55]} 13. Qb3 {[%clk 0:02:08]}  Nd5 {[%clk 0:02:35]} 14. Rac1 {[%clk 0:01:51]}  Nxc3 {[%clk 0:02:21]} 15. Rxc3 {[%clk 0:01:48]}  Bd7 {[%clk 0:02:04]} 16. Rd1 {[%clk 0:01:27]}  Na7 {[%clk 0:01:54]} 17. d5 {[%clk 0:01:24]}  exd5 {[%clk 0:01:35]} 18. Rxd5 {[%clk 0:01:11]}  Qb8 {[%clk 0:00:55]} 19. Bc4 {[%clk 0:00:49]}  b5 {[%clk 0:00:50]} 20. Rxd7 {[%clk 0:00:49]}  bxc4 {[%clk 0:00:44]} 21. Qd1 {[%clk 0:00:26]}  Qb5 {[%clk 0:00:33]} 22. Rxd8+ {[%clk 0:00:23]}  Rxd8 {[%clk 0:00:32]} 23. Qc1 {[%clk 0:00:22]}  Nc8 {[%clk 0:00:14]} 24. Rxc4 {[%clk 0:00:21]}  Nd6 {[%clk 0:00:14]} 25. Rd4 {[%clk 0:00:19]}  Rc8 {[%clk 0:00:11]} 26. Qd1 {[%clk 0:00:17]}  Nc4 {[%clk 0:00:08]} 27. Rd7 {[%clk 0:00:14]}  Bf6 {[%clk 0:00:06]} 28. Bc5 {[%clk 0:00:11]}  h6 {[%clk 0:00:04]} 29. Qd5 {[%clk 0:00:10]}  Rf8 {[%clk 0:00:01]} 30. Bxf8 {[%clk 0:00:09]}  Qxd5 {[%clk 0:00:01]} 31. Rxd5 {[%clk 0:00:09]}  Kxf8 {[%clk 0:00:02]} 32. a4 {[%clk 0:00:08]}  Ke7 {[%clk 0:00:02]} 33. b5 {[%clk 0:00:08]}  axb5 {[%clk 0:00:02]} 34. Rxb5 {[%clk 0:00:08]}  Ke6 {[%clk 0:00:02]} 35. a5 {[%clk 0:00:08]}  Bd8 {[%clk 0:00:02]} 36. a6 {[%clk 0:00:08]}  Bb6 {[%clk 0:00:03]} 37. Rb4 {[%clk 0:00:09]}  Kd5 {[%clk 0:00:03]} 38. Nd2 {[%clk 0:00:08]} 1-0


[Site "https://www.chess.com"]

[Event "Titled Tuesday Blitz August 3 2021"]
[White "Siniauski, Artsiom"]
[Black "Chen, Max"]
[WhiteFideId "13512269"]
[BlackFideId "2622440"]
[WhiteElo "2210"]
[BlackElo "2445"]
[Result "0-1"]
[Round "06"]
[TimeControl "180+1"]
[Date "2021.08.03"]
[WhiteClock "0:00:07"]
[BlackClock "0:00:03"]

1. e4 {[%clk 0:03:00]}  c5 {[%clk 0:02:54]} 2. Nf3 {[%clk 0:03:01]}  d6 {[%clk 0:02:53]} 3. Bb5+ {[%clk 0:03:00]}  Nd7 {[%clk 0:02:47]} 4. d4 {[%clk 0:03:00]}  cxd4 {[%clk 0:02:45]} 5. Qxd4 {[%clk 0:03:01]}  Nf6 {[%clk 0:02:41]} 6. Bg5 {[%clk 0:02:57]}  a6 {[%clk 0:02:15]} 7. Bxd7+ {[%clk 0:02:56]}  Nxd7 {[%clk 0:02:00]} 8. O-O {[%clk 0:02:55]}  Qb6 {[%clk 0:01:54]} 9. Nc3 {[%clk 0:02:41]}  Qxd4 {[%clk 0:01:50]} 10. Nxd4 {[%clk 0:02:42]}  g6 {[%clk 0:01:50]} 11. Nd5 {[%clk 0:02:41]}  Rb8 {[%clk 0:01:23]} 12. Nc7+ {[%clk 0:02:29]}  Kd8 {[%clk 0:01:17]} 13. Nd5 {[%clk 0:02:30]}  h6 {[%clk 0:01:12]} 14. Bh4 {[%clk 0:02:26]}  g5 {[%clk 0:01:06]} 15. Bg3 {[%clk 0:02:26]}  e6 {[%clk 0:01:04]} 16. Ne3 {[%clk 0:02:20]}  Kc7 {[%clk 0:01:02]} 17. c4 {[%clk 0:02:19]}  b6 {[%clk 0:01:00]} 18. Rac1 {[%clk 0:02:18]}  Bb7 {[%clk 0:00:59]} 19. f3 {[%clk 0:02:14]}  Bg7 {[%clk 0:00:54]} 20. Rfd1 {[%clk 0:02:14]}  Be5 {[%clk 0:00:53]} 21. Bxe5 {[%clk 0:02:11]}  Nxe5 {[%clk 0:00:48]} 22. b4 {[%clk 0:02:10]}  Nc6 {[%clk 0:00:32]} 23. c5 {[%clk 0:02:04]}  dxc5 {[%clk 0:00:24]} 24. bxc5 {[%clk 0:02:03]}  b5 {[%clk 0:00:20]} 25. Nxc6 {[%clk 0:01:47]}  Bxc6 {[%clk 0:00:17]} 26. Rd6 {[%clk 0:01:48]}  Rhd8 {[%clk 0:00:14]} 27. e5 {[%clk 0:01:48]}  b4 {[%clk 0:00:07]} 28. Kf2 {[%clk 0:01:40]}  Rb5 {[%clk 0:00:06]} 29. Rc2 {[%clk 0:01:36]}  Ra5 {[%clk 0:00:06]} 30. Rb2 {[%clk 0:01:35]}  Rxc5 {[%clk 0:00:04]} 31. Rxd8 {[%clk 0:01:33]}  Kxd8 {[%clk 0:00:05]} 32. Rxb4 {[%clk 0:01:34]}  Rxe5 {[%clk 0:00:05]} 33. Rb8+ {[%clk 0:01:31]}  Ke7 {[%clk 0:00:05]} 34. Rb6 {[%clk 0:01:28]}  Bb5 {[%clk 0:00:04]} 35. Rb7+ {[%clk 0:01:29]}  Ke8 {[%clk 0:00:04]} 36. Ng4 {[%clk 0:01:25]}  Rc5 {[%clk 0:00:04]} 37. Nxh6 {[%clk 0:01:22]}  Rc2+ {[%clk 0:00:04]} 38. Kg3 {[%clk 0:01:23]}  f5 {[%clk 0:00:04]} 39. Nf7 {[%clk 0:01:18]}  Bf1 {[%clk 0:00:05]} 40. Nxg5 {[%clk 0:01:14]}  Rxg2+ {[%clk 0:00:05]} 41. Kf4 {[%clk 0:01:15]}  Rxh2 {[%clk 0:00:05]} 42. Nxe6 {[%clk 0:01:14]}  Rxa2 {[%clk 0:00:06]} 43. Ke5 {[%clk 0:01:12]}  Bc4 {[%clk 0:00:06]} 44. Nd4 {[%clk 0:01:03]}  Rd2 {[%clk 0:00:05]} 45. Nxf5 {[%clk 0:01:01]}  Rd5+ {[%clk 0:00:05]} 46. Kf6 {[%clk 0:01:01]}  Kd8 {[%clk 0:00:05]} 47. f4 {[%clk 0:00:55]}  Bd3 {[%clk 0:00:06]} 48. Ne3 {[%clk 0:00:53]}  Rd7 {[%clk 0:00:05]} 49. Rb8+ {[%clk 0:00:51]}  Kc7 {[%clk 0:00:06]} 50. Rb3 {[%clk 0:00:52]}  a5 {[%clk 0:00:05]} 51. Ke5 {[%clk 0:00:49]}  Kc6 {[%clk 0:00:05]} 52. Rc3+ {[%clk 0:00:48]}  Kb5 {[%clk 0:00:05]} 53. Nd5 {[%clk 0:00:48]}  Bc4 {[%clk 0:00:05]} 54. Ne3 {[%clk 0:00:42]}  Rd3 {[%clk 0:00:05]} 55. Rxd3 {[%clk 0:00:33]}  Bxd3 {[%clk 0:00:05]} 56. Kd4 {[%clk 0:00:34]}  Bb1 {[%clk 0:00:05]} 57. Nd5 {[%clk 0:00:33]}  Kc6 {[%clk 0:00:02]} 58. Ke5 {[%clk 0:00:31]}  a4 {[%clk 0:00:01]} 59. Nc3 {[%clk 0:00:31]}  Bc2 {[%clk 0:00:02]} 60. Ne2 {[%clk 0:00:28]}  Kc5 {[%clk 0:00:01]} 61. Nd4 {[%clk 0:00:27]}  Bb1 {[%clk 0:00:01]} 62. Ne2 {[%clk 0:00:23]}  a3 {[%clk 0:00:02]} 63. Nc3 {[%clk 0:00:21]}  Bc2 {[%clk 0:00:02]} 64. Na2 {[%clk 0:00:18]}  Kc4 {[%clk 0:00:02]} 65. f5 {[%clk 0:00:15]}  Kb3 {[%clk 0:00:02]} 66. f6 {[%clk 0:00:11]}  Bg6 {[%clk 0:00:02]} 67. Nc1+ {[%clk 0:00:09]}  Kb2 {[%clk 0:00:03]} 68. Nd3+ {[%clk 0:00:10]}  Bxd3 {[%clk 0:00:02]} 69. f7 {[%clk 0:00:10]}  a2 {[%clk 0:00:03]} 70. f8=Q {[%clk 0:00:11]}  a1=Q {[%clk 0:00:03]} 71. Qb4+ {[%clk 0:00:10]}  Kc2+ {[%clk 0:00:03]} 72. Kf4 {[%clk 0:00:10]}  Qf6+ {[%clk 0:00:03]} 73. Ke3 {[%clk 0:00:10]}  Qe5+ {[%clk 0:00:03]} 74. Kf3 {[%clk 0:00:09]}  Qe2+ {[%clk 0:00:03]} 75. Kf4 {[%clk 0:00:09]}  Qf2+ {[%clk 0:00:03]} 76. Ke5 {[%clk 0:00:09]}  Qf5+ {[%clk 0:00:04]} 77. Kd4 {[%clk 0:00:09]}  Qe4+ {[%clk 0:00:02]} 78. Kc5 {[%clk 0:00:10]}  Qe7+ {[%clk 0:00:02]} 79. Kd5 {[%clk 0:00:07]}  Qxb4 {[%clk 0:00:03]} 80. Kc6 {[%clk 0:00:07]}  Kc3 {[%clk 0:00:03]} 0-1


[Site "https://www.chess.com"]

[Event "Titled Tuesday Blitz August 3 2021"]
[White "Stribuk, Artiom"]
[Black "Kobalia, Mikhail"]
[WhiteFideId "13515659"]
[BlackFideId "4119150"]
[WhiteElo "2224"]
[BlackElo "2569"]
[Result "0-1"]
[Round "06"]
[TimeControl "180+1"]
[Date "2021.08.03"]
[WhiteClock "0:00:07"]
[BlackClock "0:01:29"]

1. d4 {[%clk 0:03:00]}  Nf6 {[%clk 0:02:59]} 2. c4 {[%clk 0:03:00]}  g6 {[%clk 0:02:59]} 3. Nf3 {[%clk 0:03:00]}  Bg7 {[%clk 0:03:00]} 4. g3 {[%clk 0:03:00]}  O-O {[%clk 0:03:00]} 5. Bg2 {[%clk 0:03:01]}  d6 {[%clk 0:03:01]} 6. O-O {[%clk 0:03:02]}  Nc6 {[%clk 0:03:01]} 7. Nc3 {[%clk 0:03:02]}  a6 {[%clk 0:03:01]} 8. Qd3 {[%clk 0:03:03]}  e5 {[%clk 0:02:58]} 9. dxe5 {[%clk 0:03:04]}  dxe5 {[%clk 0:02:58]} 10. Qxd8 {[%clk 0:03:03]}  Rxd8 {[%clk 0:02:57]} 11. Bg5 {[%clk 0:03:04]}  Be6 {[%clk 0:02:54]} 12. Nd2 {[%clk 0:03:04]}  h6 {[%clk 0:02:46]} 13. Bxf6 {[%clk 0:03:04]}  Rxd2 {[%clk 0:02:46]} 14. Bxg7 {[%clk 0:03:00]}  Kxg7 {[%clk 0:02:46]} 15. Bxc6 {[%clk 0:02:51]}  bxc6 {[%clk 0:02:46]} 16. b3 {[%clk 0:02:49]}  f5 {[%clk 0:02:41]} 17. Rfd1 {[%clk 0:02:42]}  Rad8 {[%clk 0:02:40]} 18. Rxd2 {[%clk 0:02:39]}  Rxd2 {[%clk 0:02:39]} 19. Kf1 {[%clk 0:02:39]}  Rc2 {[%clk 0:02:38]} 20. Na4 {[%clk 0:02:36]}  f4 {[%clk 0:02:38]} 21. Ke1 {[%clk 0:02:21]}  Bf5 {[%clk 0:02:28]} 22. Nc5 {[%clk 0:01:48]}  a5 {[%clk 0:02:27]} 23. Na6 {[%clk 0:01:39]}  g5 {[%clk 0:02:15]} 24. Nxc7 {[%clk 0:01:33]}  g4 {[%clk 0:02:15]} 25. Ne8+ {[%clk 0:01:30]}  Kg6 {[%clk 0:02:14]} 26. Nd6 {[%clk 0:01:30]}  f3 {[%clk 0:02:08]} 27. exf3 {[%clk 0:01:10]}  gxf3 {[%clk 0:02:01]} 28. Rd1 {[%clk 0:00:55]}  Re2+ {[%clk 0:01:53]} 29. Kf1 {[%clk 0:00:55]}  Rxa2 {[%clk 0:01:53]} 30. Nxf5 {[%clk 0:00:34]}  Kxf5 {[%clk 0:01:52]} 31. h3 {[%clk 0:00:35]}  Rb2 {[%clk 0:01:43]} 32. Kg1 {[%clk 0:00:33]}  Rxb3 {[%clk 0:01:43]} 33. Rd6 {[%clk 0:00:33]}  Rb1+ {[%clk 0:01:42]} 34. Kh2 {[%clk 0:00:33]}  Rf1 {[%clk 0:01:42]} 35. g4+ {[%clk 0:00:33]}  Ke4 {[%clk 0:01:39]} 36. Kg3 {[%clk 0:00:28]}  Rg1+ {[%clk 0:01:40]} 37. Kh4 {[%clk 0:00:28]}  Rg2 {[%clk 0:01:40]} 38. Rd2 {[%clk 0:00:29]}  Kf4 {[%clk 0:01:35]} 39. Kh5 {[%clk 0:00:27]}  Rh2 {[%clk 0:01:34]} 40. h4 {[%clk 0:00:22]}  e4 {[%clk 0:01:34]} 41. c5 {[%clk 0:00:16]}  a4 {[%clk 0:01:34]} 42. Ra2 {[%clk 0:00:14]}  a3 {[%clk 0:01:34]} 43. Rc2 {[%clk 0:00:14]}  Ke5 {[%clk 0:01:34]} 44. Kxh6 {[%clk 0:00:11]}  Rxh4+ {[%clk 0:01:32]} 45. Kg5 {[%clk 0:00:12]}  Rh2 {[%clk 0:01:32]} 46. Ra2 {[%clk 0:00:09]}  e3 {[%clk 0:01:31]} 47. Rxa3 {[%clk 0:00:09]}  exf2 {[%clk 0:01:31]} 48. Rxf3 {[%clk 0:00:09]}  Ke4 {[%clk 0:01:31]} 49. Rf6 {[%clk 0:00:08]}  Ke3 {[%clk 0:01:31]} 50. Kg6 {[%clk 0:00:09]}  Rh3 {[%clk 0:01:30]} 51. Re6+ {[%clk 0:00:08]}  Kd2 {[%clk 0:01:29]} 52. Rf6 {[%clk 0:00:06]}  Ke2 {[%clk 0:01:29]} 53. Re6+ {[%clk 0:00:07]}  Re3 {[%clk 0:01:29]} 0-1


[Site "https://www.chess.com"]

[Event "Titled Tuesday Blitz August 3 2021"]
[White "Trent, Lawrence"]
[Black "Gunina, Valentina"]
[WhiteFideId "408638"]
[BlackFideId "4167570"]
[WhiteElo "2474"]
[BlackElo "2399"]
[Result "1-0"]
[Round "06"]
[TimeControl "180+1"]
[Date "2021.08.03"]
[WhiteClock "0:01:54"]
[BlackClock "0:00:03"]

1. e4 {[%clk 0:03:00]}  c6 {[%clk 0:03:00]} 2. d4 {[%clk 0:02:46]}  d5 {[%clk 0:03:00]} 3. f3 {[%clk 0:02:46]}  e6 {[%clk 0:02:57]} 4. Nc3 {[%clk 0:02:45]}  Bb4 {[%clk 0:02:56]} 5. a3 {[%clk 0:02:46]}  Ba5 {[%clk 0:02:51]} 6. b4 {[%clk 0:02:45]}  Bc7 {[%clk 0:02:49]} 7. e5 {[%clk 0:02:42]}  a5 {[%clk 0:02:48]} 8. b5 {[%clk 0:02:40]}  c5 {[%clk 0:02:48]} 9. f4 {[%clk 0:02:31]}  cxd4 {[%clk 0:02:47]} 10. Nce2 {[%clk 0:02:30]}  Ne7 {[%clk 0:02:07]} 11. Nxd4 {[%clk 0:02:29]}  O-O {[%clk 0:02:07]} 12. Ngf3 {[%clk 0:02:29]}  Nd7 {[%clk 0:02:00]} 13. Bd3 {[%clk 0:02:28]}  Nc5 {[%clk 0:02:00]} 14. Bxh7+ {[%clk 0:02:23]}  Kxh7 {[%clk 0:02:00]} 15. Ng5+ {[%clk 0:02:23]}  Kg6 {[%clk 0:01:01]} 16. Qg4 {[%clk 0:02:22]}  f5 {[%clk 0:00:50]} 17. Qg3 {[%clk 0:02:22]}  Bxe5 {[%clk 0:00:20]} 18. fxe5 {[%clk 0:02:12]}  f4 {[%clk 0:00:16]} 19. Bxf4 {[%clk 0:02:12]}  Nf5 {[%clk 0:00:16]} 20. Nxf5 {[%clk 0:02:07]}  Kxf5 {[%clk 0:00:03]} 21. O-O {[%clk 0:01:54]} 1-0


[Site "https://www.chess.com"]

[Event "Titled Tuesday Blitz August 3 2021"]
[White "Urazayev, Arystanbek"]
[Black "Zhao, Erick"]
[WhiteFideId "13709810"]
[BlackFideId "30946930"]
[WhiteElo "2321"]
[BlackElo "2526"]
[Result "1-0"]
[Round "06"]
[TimeControl "180+1"]
[Date "2021.08.03"]
[WhiteClock "0:00:55"]
[BlackClock "0:00:03"]

1. e4 {[%clk 0:03:00]}  c5 {[%clk 0:03:00]} 2. Nf3 {[%clk 0:03:00]}  d6 {[%clk 0:03:00]} 3. d4 {[%clk 0:03:00]}  cxd4 {[%clk 0:03:01]} 4. Nxd4 {[%clk 0:03:01]}  Nf6 {[%clk 0:03:01]} 5. Nc3 {[%clk 0:03:02]}  a6 {[%clk 0:03:02]} 6. Rg1 {[%clk 0:02:59]}  e5 {[%clk 0:02:54]} 7. Nb3 {[%clk 0:02:59]}  Be6 {[%clk 0:02:23]} 8. g4 {[%clk 0:02:58]}  h6 {[%clk 0:02:23]} 9. h4 {[%clk 0:02:58]}  Nc6 {[%clk 0:02:20]} 10. g5 {[%clk 0:02:58]}  hxg5 {[%clk 0:02:21]} 11. hxg5 {[%clk 0:02:59]}  Nh5 {[%clk 0:02:18]} 12. g6 {[%clk 0:03:00]}  fxg6 {[%clk 0:02:16]} 13. Rxg6 {[%clk 0:02:57]}  Bf7 {[%clk 0:02:15]} 14. Rg1 {[%clk 0:02:57]}  Be7 {[%clk 0:02:08]} 15. Be3 {[%clk 0:02:57]}  Qd7 {[%clk 0:01:59]} 16. Nd5 {[%clk 0:02:57]}  Rd8 {[%clk 0:01:49]} 17. Be2 {[%clk 0:02:50]}  Nf6 {[%clk 0:01:41]} 18. Qd2 {[%clk 0:02:46]}  Nxe4 {[%clk 0:01:39]} 19. Qd3 {[%clk 0:02:46]}  Nc5 {[%clk 0:01:32]} 20. Bxc5 {[%clk 0:02:32]}  dxc5 {[%clk 0:01:31]} 21. c4 {[%clk 0:02:33]}  Nb4 {[%clk 0:01:23]} 22. Nxb4 {[%clk 0:02:24]}  cxb4 {[%clk 0:01:22]} 23. O-O-O {[%clk 0:02:16]}  Qxd3 {[%clk 0:01:17]} 24. Bxd3 {[%clk 0:02:15]}  Bf6 {[%clk 0:01:05]} 25. Na5 {[%clk 0:02:05]}  b6 {[%clk 0:01:00]} 26. Nc6 {[%clk 0:02:04]}  Rc8 {[%clk 0:01:01]} 27. Nxb4 {[%clk 0:02:04]}  Bxc4 {[%clk 0:01:01]} 28. Kb1 {[%clk 0:01:56]}  a5 {[%clk 0:00:55]} 29. Bf5 {[%clk 0:01:49]}  Rc5 {[%clk 0:00:52]} 30. Nc2 {[%clk 0:01:44]}  Rc7 {[%clk 0:00:44]} 31. Ne3 {[%clk 0:01:42]}  Bf7 {[%clk 0:00:34]} 32. Rd6 {[%clk 0:01:42]}  Rh2 {[%clk 0:00:33]} 33. Ng4 {[%clk 0:01:42]}  Rh5 {[%clk 0:00:26]} 34. Be4 {[%clk 0:01:36]}  Rg5 {[%clk 0:00:17]} 35. f3 {[%clk 0:01:29]}  Ke7 {[%clk 0:00:16]} 36. Rxb6 {[%clk 0:01:28]}  Be6 {[%clk 0:00:16]} 37. Rb5 {[%clk 0:01:22]}  Bxg4 {[%clk 0:00:16]} 38. fxg4 {[%clk 0:01:23]}  Rc4 {[%clk 0:00:16]} 39. Bf5 {[%clk 0:01:20]}  g6 {[%clk 0:00:16]} 40. Rb7+ {[%clk 0:01:17]}  Kd6 {[%clk 0:00:16]} 41. Rd1+ {[%clk 0:01:14]}  Kc6 {[%clk 0:00:16]} 42. Rf7 {[%clk 0:01:15]}  gxf5 {[%clk 0:00:12]} 43. Rxf6+ {[%clk 0:01:15]}  Kc5 {[%clk 0:00:12]} 44. gxf5 {[%clk 0:01:15]}  Rf4 {[%clk 0:00:12]} 45. Rc1+ {[%clk 0:01:01]}  Kb5 {[%clk 0:00:11]} 46. Rfc6 {[%clk 0:00:59]}  Rgxf5 {[%clk 0:00:08]} 47. R1c5+ {[%clk 0:00:59]}  Kb4 {[%clk 0:00:06]} 48. a3+ {[%clk 0:00:59]}  Ka4 {[%clk 0:00:03]} 49. Ka2 {[%clk 0:00:59]}  Rf2 {[%clk 0:00:03]} 50. Rc4+ {[%clk 0:00:54]}  Kb5 {[%clk 0:00:03]} 51. a4# {[%clk 0:00:55]} 1-0


[Site "https://www.chess.com"]